[Event "GrandPrix_30.05"]
[Site "Chess.com"]
[Date "2020.05.30"]
[Round "7"]
[White "levvard"]
[Black "Sunerorlater"]
[Result "1-0"]
[WhiteElo "2078"]
[BlackElo "2250"]
[TimeControl "600+2"]
[EndTime "11:30:26 PDT"]
[Termination "levvard won on time"]

1. e4 {[%clk 0:10:01.9]} 1... e5 {[%clk 0:09:51.2]} 2. d4 {[%clk 0:10:02.2]}
2... exd4 {[%clk 0:09:50]} 3. c3 {[%clk 0:10:03.1]} 3... d5 {[%clk 0:09:50.2]}
4. Qxd4 {[%clk 0:09:53.7]} 4... dxe4 {[%clk 0:09:25.5]} 5. Qxe4+ {[%clk
0:09:43.2]} 5... Qe7 {[%clk 0:09:22.7]} 6. Qe2 {[%clk 0:09:39.6]} 6... Nf6
{[%clk 0:09:16.1]} 7. Bg5 {[%clk 0:09:37.9]} 7... Qxe2+ {[%clk 0:09:07.9]} 8.
Bxe2 {[%clk 0:09:39.8]} 8... Be7 {[%clk 0:09:03.2]} 9. Nf3 {[%clk 0:09:34.8]}
9... O-O {[%clk 0:09:02.5]} 10. Nbd2 {[%clk 0:09:33.1]} 10... h6 {[%clk
0:08:51.3]} 11. Bh4 {[%clk 0:09:32.7]} 11... Bf5 {[%clk 0:08:42.9]} 12. Nd4
{[%clk 0:09:28.9]} 12... Bd7 {[%clk 0:08:34.6]} 13. Bf3 {[%clk 0:09:27.7]} 13...
c6 {[%clk 0:08:33]} 14. Bg3 {[%clk 0:09:22.4]} 14... Re8 {[%clk 0:08:23.9]} 15.
O-O {[%clk 0:09:21.9]} 15... Bg4 {[%clk 0:08:13.1]} 16. Rae1 {[%clk 0:09:18.8]}
16... Nbd7 {[%clk 0:08:09]} 17. Bxg4 {[%clk 0:08:58]} 17... Nxg4 {[%clk
0:08:08.2]} 18. N4f3 {[%clk 0:08:52]} 18... Ngf6 {[%clk 0:07:48.9]} 19. h3
{[%clk 0:08:51]} 19... Rad8 {[%clk 0:07:36.9]} 20. Re2 {[%clk 0:08:45.6]} 20...
Bf8 {[%clk 0:07:33]} 21. Rfe1 {[%clk 0:08:43.8]} 21... Rxe2 {[%clk 0:07:29.8]}
22. Rxe2 {[%clk 0:08:45.7]} 22... Nc5 {[%clk 0:07:28.9]} 23. Bc7 {[%clk
0:08:31.3]} 23... Re8 {[%clk 0:07:13.6]} 24. Rxe8 {[%clk 0:08:29.8]} 24... Nxe8
{[%clk 0:07:11.7]} 25. Be5 {[%clk 0:08:27.5]} 25... Nd3 {[%clk 0:07:10.8]} 26.
c4 {[%clk 0:08:22.7]} 26... f6 {[%clk 0:06:15.1]} 27. Bd4 {[%clk 0:08:21.1]}
27... c5 {[%clk 0:06:11.8]} 28. Bc3 {[%clk 0:08:21.3]} 28... Nc1 {[%clk
0:06:09.8]} 29. a4 {[%clk 0:08:19.8]} 29... Ne2+ {[%clk 0:06:02.4]} 30. Kf1
{[%clk 0:08:19.7]} 30... Nxc3 {[%clk 0:06:04.3]} 31. bxc3 {[%clk 0:08:19.9]}
31... b6 {[%clk 0:05:54.7]} 32. Ke2 {[%clk 0:08:18.5]} 32... Kf7 {[%clk
0:05:53.1]} 33. Nf1 {[%clk 0:08:16.9]} 33... Nd6 {[%clk 0:05:43.5]} 34. Kd3
{[%clk 0:08:15.5]} 34... Ke6 {[%clk 0:05:40.4]} 35. Ne3 {[%clk 0:08:15.2]} 35...
f5 {[%clk 0:05:33.2]} 36. Nd5 {[%clk 0:08:12.6]} 36... Ne4 {[%clk 0:05:24.2]}
37. Ke2 {[%clk 0:08:09.2]} 37... Be7 {[%clk 0:04:40.9]} 38. Nd2 {[%clk
0:08:08.6]} 38... Nd6 {[%clk 0:04:40.7]} 39. Kd3 {[%clk 0:08:06.6]} 39... Bd8
{[%clk 0:04:38]} 40. g3 {[%clk 0:08:05.7]} 40... g5 {[%clk 0:04:24.8]} 41. g4
{[%clk 0:08:04.7]} 41... Nf7 {[%clk 0:03:58.3]} 42. Nf3 {[%clk 0:07:30.6]} 42...
fxg4 {[%clk 0:03:39.6]} 43. hxg4 {[%clk 0:07:30.2]} 43... Bf6 {[%clk 0:03:36]}
44. Kc2 {[%clk 0:07:19.2]} 44... Nd6 {[%clk 0:03:31.2]} 45. Kd3 {[%clk
0:07:18.5]} 45... Bg7 {[%clk 0:03:31.1]} 46. Nd2 {[%clk 0:07:17.5]} 46... Nf7
{[%clk 0:03:25.1]} 47. Nf3 {[%clk 0:07:16.2]} 47... Nd8 {[%clk 0:03:23.7]} 48.
Ke3 {[%clk 0:07:03.5]} 48... Nc6 {[%clk 0:03:22.6]} 49. Ke4 {[%clk 0:06:43.2]}
49... Na5 {[%clk 0:03:15.8]} 50. Nd2 {[%clk 0:06:41.5]} 50... Be5 {[%clk
0:03:10.2]} 51. Kd3 {[%clk 0:06:40.1]} 51... Bd6 {[%clk 0:02:55.6]} 52. Nf3
{[%clk 0:06:36.3]} 52... Be5 {[%clk 0:02:43.6]} 53. Ne3 {[%clk 0:06:11]} 53...
Bg7 {[%clk 0:02:36.6]} 54. Nf5 {[%clk 0:06:10.7]} 54... Bf8 {[%clk 0:02:36.2]}
55. Ne3 {[%clk 0:06:10.2]} 55... Nc6 {[%clk 0:02:25.8]} 56. Ke4 {[%clk
0:06:07.1]} 56... Bg7 {[%clk 0:02:15.2]} 57. Nd5 {[%clk 0:06:04.2]} 57... Na5
{[%clk 0:02:09.5]} 58. Kd3 {[%clk 0:06:03.6]} 58... Nb7 {[%clk 0:02:10.6]} 59.
Ne1 {[%clk 0:05:59.8]} 59... Nd6 {[%clk 0:02:05.2]} 60. Nc2 {[%clk 0:05:55.3]}
60... Ke5 {[%clk 0:02:01.9]} 61. Nce3 {[%clk 0:05:50.7]} 61... Ne4 {[%clk
0:01:41.6]} 62. f3 {[%clk 0:05:47.5]} 62... Nd6 {[%clk 0:01:37.1]} 63. Ne7
{[%clk 0:05:37.6]} 63... Kf4 {[%clk 0:01:27.7]} 64. Ke2 {[%clk 0:05:25]} 64...
Bf6 {[%clk 0:01:08.1]} 65. Nc6 {[%clk 0:05:02.4]} 65... Kg3 {[%clk 0:00:56.6]}
66. Nxa7 {[%clk 0:04:59]} 66... Bxc3 {[%clk 0:00:55.9]} 67. Nb5 {[%clk
0:04:41.5]} 67... Nxb5 {[%clk 0:00:40.2]} 68. cxb5 {[%clk 0:04:41.4]} 68... Bf6
{[%clk 0:00:23.2]} 69. Nf5+ {[%clk 0:03:28.1]} 69... Kf4 {[%clk 0:00:23.7]} 70.
Nxh6 {[%clk 0:03:28.7]} 70... c4 {[%clk 0:00:22.3]} 71. Nf7 {[%clk 0:03:27.1]}
71... Be7 {[%clk 0:00:17.8]} 72. a5 {[%clk 0:03:23.9]} 72... bxa5 {[%clk
0:00:18.6]} 73. b6 {[%clk 0:03:23.2]} 73... Bc5 {[%clk 0:00:18.6]} 74. b7 {[%clk
0:03:22.2]} 74... Ba7 {[%clk 0:00:16.9]} 75. Nd8 {[%clk 0:02:55.7]} 75... Bb8
{[%clk 0:00:11.3]} 76. Nc6 {[%clk 0:02:54.7]} 76... Bc7 {[%clk 0:00:08.4]} 77.
Nxa5 {[%clk 0:02:50.6]} 77... c3 {[%clk 0:00:09.7]} 78. Nb3 {[%clk 0:02:48.8]}
78... c2 {[%clk 0:00:03.7]} 79. Nc1 {[%clk 0:02:47.2]} 79... Bb8 {[%clk
0:00:04.7]} 80. Nd3+ {[%clk 0:02:46.8]} 80... Kg3 {[%clk 0:00:04.3]} 81. Ke3
{[%clk 0:02:45.5]} 81... Ba7+ {[%clk 0:00:05.4]} 82. Ke4 {[%clk 0:02:45.2]}
82... Bb8 {[%clk 0:00:06.6]} 83. Kf5 {[%clk 0:02:39.2]} 83... Kxf3 {[%clk
0:00:06.6]} 84. Ne1+ {[%clk 0:02:35.2]} 1-0

[Event "GrandPrix_30.05"]
[Site "Chess.com"]
[Date "2020.05.30"]
[Round "7"]
[White "PotapovaM"]
[Black "OK97"]
[Result "0-1"]
[WhiteElo "2194"]
[BlackElo "2340"]
[TimeControl "600+2"]
[EndTime "11:30:43 PDT"]
[Termination "OK97 won by resignation"]

1. d4 {[%clk 0:10:01.9]} 1... Nf6 {[%clk 0:10:00]} 2. c4 {[%clk 0:09:59]} 2...
e6 {[%clk 0:10:01.3]} 3. Nf3 {[%clk 0:09:58.6]} 3... Bb4+ {[%clk 0:10:01.3]} 4.
Nbd2 {[%clk 0:09:57.5]} 4... O-O {[%clk 0:10:00.8]} 5. a3 {[%clk 0:09:57.9]}
5... Be7 {[%clk 0:09:59.9]} 6. e4 {[%clk 0:09:36.7]} 6... d6 {[%clk 0:10:00.7]}
7. Bd3 {[%clk 0:09:34]} 7... e5 {[%clk 0:09:57.5]} 8. O-O {[%clk 0:09:29.2]}
8... exd4 {[%clk 0:09:28.2]} 9. Nxd4 {[%clk 0:09:31.1]} 9... Nfd7 {[%clk
0:09:29.7]} 10. Nb1 {[%clk 0:09:17.7]} 10... Bf6 {[%clk 0:09:28.3]} 11. Nf3
{[%clk 0:08:55.1]} 11... Re8 {[%clk 0:09:10.1]} 12. Re1 {[%clk 0:08:48.7]} 12...
Nc5 {[%clk 0:08:43]} 13. h3 {[%clk 0:08:07.5]} 13... Nc6 {[%clk 0:07:57.5]} 14.
Qc2 {[%clk 0:07:48.4]} 14... Ne5 {[%clk 0:06:54]} 15. Nxe5 {[%clk 0:07:42.8]}
15... dxe5 {[%clk 0:06:35.9]} 16. Bf1 {[%clk 0:07:26.7]} 16... Ne6 {[%clk
0:05:51]} 17. Nc3 {[%clk 0:07:11.9]} 17... c6 {[%clk 0:05:45.4]} 18. Be3 {[%clk
0:07:01.6]} 18... Bg5 {[%clk 0:05:44.1]} 19. Rad1 {[%clk 0:06:55.9]} 19... Qe7
{[%clk 0:05:44.2]} 20. b4 {[%clk 0:06:46]} 20... Bxe3 {[%clk 0:05:40]} 21. fxe3
{[%clk 0:06:47.9]} 21... b6 {[%clk 0:05:18.7]} 22. Qd2 {[%clk 0:06:09.3]} 22...
Rd8 {[%clk 0:05:00.5]} 23. Qe2 {[%clk 0:05:59.8]} 23... Bb7 {[%clk 0:04:53.1]}
24. Rxd8+ {[%clk 0:05:59.9]} 24... Rxd8 {[%clk 0:04:52.8]} 25. Rd1 {[%clk
0:06:01]} 25... g6 {[%clk 0:04:36]} 26. Rxd8+ {[%clk 0:05:50.2]} 26... Qxd8
{[%clk 0:04:37.9]} 27. Qd3 {[%clk 0:05:50.8]} 27... Qe7 {[%clk 0:04:23.7]} 28.
Na4 {[%clk 0:05:37.4]} 28... Kg7 {[%clk 0:04:03.8]} 29. Be2 {[%clk 0:05:36.3]}
29... Qh4 {[%clk 0:03:24.2]} 30. Kf1 {[%clk 0:04:32.9]} 30... Ng5 {[%clk
0:02:39.7]} 31. Nc3 {[%clk 0:04:32.4]} 31... Qg3 {[%clk 0:01:47.7]} 32. c5
{[%clk 0:03:08.4]} 32... bxc5 {[%clk 0:01:37.8]} 33. bxc5 {[%clk 0:03:10.3]}
33... Bc8 {[%clk 0:01:37.6]} 34. Bd1 {[%clk 0:03:04.8]} 34... Be6 {[%clk
0:00:48.4]} 35. Ne2 {[%clk 0:02:39.2]} 35... Qh4 {[%clk 0:00:48.7]} 36. Nc3
{[%clk 0:02:24.1]} 36... Qg3 {[%clk 0:00:21.8]} 37. Ne2 {[%clk 0:02:24.7]} 37...
Qh2 {[%clk 0:00:23.1]} 38. Ng1 {[%clk 0:02:04.9]} 38... h5 {[%clk 0:00:24]} 39.
a4 {[%clk 0:01:54.3]} 39... Qg3 {[%clk 0:00:22.7]} 40. Ne2 {[%clk 0:01:52.5]}
40... Qh4 {[%clk 0:00:23.8]} 41. Nc3 {[%clk 0:01:50.7]} 41... a5 {[%clk
0:00:23.2]} 42. Ke2 {[%clk 0:01:16.9]} 42... Qg3 {[%clk 0:00:22.3]} 43. Kf1
{[%clk 0:01:18.2]} 43... Kh7 {[%clk 0:00:19.3]} 44. Bc2 {[%clk 0:01:11.7]} 44...
Qh2 {[%clk 0:00:17.5]} 45. Bd1 {[%clk 0:01:03.7]} 45... Bxh3 {[%clk 0:00:15.3]}
46. gxh3 {[%clk 0:00:58.1]} 46... Nxh3 {[%clk 0:00:17.2]} 47. Qc2 {[%clk
0:00:59.7]} 47... Qg1+ {[%clk 0:00:13.7]} 48. Ke2 {[%clk 0:01:00.8]} 48... h4
{[%clk 0:00:09.8]} 49. Kd3 {[%clk 0:00:56.3]} 49... Nf2+ {[%clk 0:00:09.6]} 50.
Kc4 {[%clk 0:00:56.2]} 50... h3 {[%clk 0:00:11]} 51. Bf3 {[%clk 0:00:34.2]}
51... h2 {[%clk 0:00:11.9]} 52. Qe2 {[%clk 0:00:31.4]} 52... g5 {[%clk
0:00:09.7]} 53. Bg4 {[%clk 0:00:03.1]} 53... Nxg4 {[%clk 0:00:07.4]} 54. Qf3
{[%clk 0:00:04.2]} 54... Kg7 {[%clk 0:00:07]} 55. Qf5 {[%clk 0:00:04.5]} 55...
Nxe3+ {[%clk 0:00:07.9]} 56. Kb3 {[%clk 0:00:05.8]} 56... Nxf5 {[%clk
0:00:08.4]} 57. exf5 {[%clk 0:00:07.7]} 57... h1=Q {[%clk 0:00:08.6]} 58. f6+
{[%clk 0:00:09.6]} 58... Kxf6 {[%clk 0:00:08.8]} 59. Kc4 {[%clk 0:00:11.5]}
59... Qd4+ {[%clk 0:00:08.5]} 60. Kb3 {[%clk 0:00:12.6]} 60... Qxc3+ {[%clk
0:00:09.9]} 61. Kxc3 {[%clk 0:00:13.6]} 61... Qf3+ {[%clk 0:00:11.2]} 62. Kc4
{[%clk 0:00:15.1]} 62... Qd5+ {[%clk 0:00:12.3]} 63. Kc3 {[%clk 0:00:16.2]}
63... g4 {[%clk 0:00:13.6]} 64. Kc2 {[%clk 0:00:17]} 64... g3 {[%clk 0:00:15.2]}
65. Kc3 {[%clk 0:00:18.9]} 65... g2 {[%clk 0:00:16.6]} 0-1

[Event "GrandPrix_30.05"]
[Site "Chess.com"]
[Date "2020.05.30"]
[Round "7"]
[White "wnstop"]
[Black "Misterlose0"]
[Result "1/2-1/2"]
[WhiteElo "2230"]
[BlackElo "2046"]
[TimeControl "600+2"]
[EndTime "11:30:49 PDT"]
[Termination "Game drawn by repetition"]

1. e4 {[%clk 0:10:01.9]} 1... Nc6 {[%clk 0:10:01]} 2. d4 {[%clk 0:09:51.4]} 2...
d5 {[%clk 0:10:02.9]} 3. Nc3 {[%clk 0:09:50.6]} 3... dxe4 {[%clk 0:10:03.7]} 4.
d5 {[%clk 0:09:50.4]} 4... Nb8 {[%clk 0:10:05.3]} 5. Nxe4 {[%clk 0:08:46.6]}
5... c6 {[%clk 0:10:05.5]} 6. Bc4 {[%clk 0:08:28.8]} 6... cxd5 {[%clk
0:10:04.4]} 7. Qxd5 {[%clk 0:08:22.9]} 7... Qxd5 {[%clk 0:10:05.4]} 8. Bxd5
{[%clk 0:08:24.8]} 8... e6 {[%clk 0:10:07.3]} 9. Bb3 {[%clk 0:08:24]} 9... Bd7
{[%clk 0:10:09.2]} 10. Bf4 {[%clk 0:07:38.4]} 10... Bc6 {[%clk 0:10:11.1]} 11.
f3 {[%clk 0:07:37.2]} 11... Nd7 {[%clk 0:10:04.8]} 12. O-O-O {[%clk 0:07:34]}
12... Bxe4 {[%clk 0:09:47]} 13. fxe4 {[%clk 0:07:35.9]} 13... Nc5 {[%clk
0:09:48.9]} 14. Bc4 {[%clk 0:07:24.3]} 14... a6 {[%clk 0:09:48.5]} 15. e5 {[%clk
0:07:21.9]} 15... Ne7 {[%clk 0:09:43.7]} 16. Nf3 {[%clk 0:07:13.5]} 16... b5
{[%clk 0:09:39.8]} 17. Be2 {[%clk 0:07:11.7]} 17... Nd5 {[%clk 0:09:40.7]} 18.
Bd2 {[%clk 0:07:02.6]} 18... Ne4 {[%clk 0:09:38.5]} 19. Be1 {[%clk 0:06:26.5]}
19... Bc5 {[%clk 0:09:18.5]} 20. Bd3 {[%clk 0:06:26]} 20... Be3+ {[%clk
0:09:04.7]} 21. Kb1 {[%clk 0:06:21.8]} 21... Nc5 {[%clk 0:09:05.3]} 22. Bf1
{[%clk 0:05:51.3]} 22... O-O {[%clk 0:08:53.5]} 23. g3 {[%clk 0:05:44.4]} 23...
Rfd8 {[%clk 0:08:53.7]} 24. Bg2 {[%clk 0:05:39.5]} 24... Nf4 {[%clk 0:08:41.8]}
25. Rxd8+ {[%clk 0:05:22.7]} 25... Rxd8 {[%clk 0:08:43.7]} 26. Ba5 {[%clk
0:05:23.6]} 26... Nxg2 {[%clk 0:06:41.3]} 27. Bxd8 {[%clk 0:05:23.4]} 27... Ne4
{[%clk 0:06:03.9]} 28. Ne1 {[%clk 0:04:58.7]} 28... Nd2+ {[%clk 0:05:40]} 29.
Ka1 {[%clk 0:04:57.7]} 29... Nxe1 {[%clk 0:05:41.9]} 30. Rxe1 {[%clk 0:04:58.3]}
30... Nc4 {[%clk 0:05:43.8]} 31. Bc7 {[%clk 0:04:33.6]} 31... b4 {[%clk
0:05:22.3]} 32. Rd1 {[%clk 0:04:04.2]} 32... h5 {[%clk 0:05:12.2]} 33. Rd8+
{[%clk 0:03:47.9]} 33... Kh7 {[%clk 0:05:12.8]} 34. b3 {[%clk 0:03:35.8]} 34...
Na3 {[%clk 0:04:53.8]} 35. Kb2 {[%clk 0:03:24.9]} 35... Nb5 {[%clk 0:04:52.8]}
36. Ba5 {[%clk 0:03:00]} 36... Bd4+ {[%clk 0:04:48.8]} 37. Kc1 {[%clk
0:02:52.2]} 37... Be3+ {[%clk 0:03:08.9]} 38. Kd1 {[%clk 0:02:45.9]} 38... Nc3+
{[%clk 0:03:09]} 39. Ke1 {[%clk 0:02:46.6]} 39... Nd5 {[%clk 0:02:54.1]} 40. Rd6
{[%clk 0:01:28.5]} 40... Bd4 {[%clk 0:02:51.4]} 41. Rxa6 {[%clk 0:01:27.4]}
41... Bxe5 {[%clk 0:02:52.5]} 42. Ra7 {[%clk 0:01:22.4]} 42... Kg6 {[%clk
0:02:51.8]} 43. Rd7 {[%clk 0:01:19.2]} 43... h4 {[%clk 0:02:31]} 44. Kf2 {[%clk
0:00:51.3]} 44... f5 {[%clk 0:01:22]} 45. Rxd5 {[%clk 0:00:40.6]} 45... exd5
{[%clk 0:01:23.9]} 46. Bxb4 {[%clk 0:00:41.9]} 46... Bd4+ {[%clk 0:01:18.4]} 47.
Kf3 {[%clk 0:00:39.4]} 47... h3 {[%clk 0:01:19.5]} 48. Bd2 {[%clk 0:00:21.4]}
48... Bg1 {[%clk 0:01:17]} 49. Be3 {[%clk 0:00:15.9]} 49... Bxe3 {[%clk
0:00:17.5]} 50. Kxe3 {[%clk 0:00:16.7]} 50... Kf6 {[%clk 0:00:19.4]} 51. Kd4
{[%clk 0:00:06.4]} 51... Ke6 {[%clk 0:00:21.3]} 52. a4 {[%clk 0:00:06.8]} 52...
Kd6 {[%clk 0:00:19.6]} 53. a5 {[%clk 0:00:07.1]} 53... g5 {[%clk 0:00:20.1]} 54.
a6 {[%clk 0:00:05.3]} 54... Kc6 {[%clk 0:00:21.1]} 55. a7 {[%clk 0:00:06.8]}
55... Kb7 {[%clk 0:00:23]} 56. Ke5 {[%clk 0:00:07.5]} 56... f4 {[%clk 0:00:23]}
57. gxf4 {[%clk 0:00:07.1]} 57... g4 {[%clk 0:00:24.6]} 58. f5 {[%clk
0:00:08.4]} 58... g3 {[%clk 0:00:25.6]} 59. f6 {[%clk 0:00:10]} 59... gxh2
{[%clk 0:00:23]} 60. f7 {[%clk 0:00:10.8]} 60... h1=Q {[%clk 0:00:24.4]} 61.
a8=Q+ {[%clk 0:00:09.7]} 61... Kxa8 {[%clk 0:00:25.8]} 62. f8=Q+ {[%clk
0:00:11.3]} 62... Kb7 {[%clk 0:00:23.7]} 63. Qb4+ {[%clk 0:00:09.1]} 63... Kc8
{[%clk 0:00:20.3]} 64. Qf8+ {[%clk 0:00:09.4]} 64... Kc7 {[%clk 0:00:14.6]} 65.
Qd6+ {[%clk 0:00:09.7]} 65... Kb7 {[%clk 0:00:15.9]} 66. Qb4+ {[%clk 0:00:10.2]}
66... Ka7 {[%clk 0:00:13.1]} 67. Qa5+ {[%clk 0:00:10.5]} 67... Kb7 {[%clk
0:00:14.5]} 68. Qb5+ {[%clk 0:00:11.4]} 68... Ka7 {[%clk 0:00:15.4]} 69. Qa5+
{[%clk 0:00:12.2]} 69... Kb7 {[%clk 0:00:16.5]} 70. Qb5+ {[%clk 0:00:13.6]}
70... Ka7 {[%clk 0:00:15.4]} 71. Qa5+ {[%clk 0:00:14.4]} 1/2-1/2

[Event "GrandPrix_30.05"]
[Site "Chess.com"]
[Date "2020.05.30"]
[Round "7"]
[White "bsnsun"]
[Black "Kildepiotr"]
[Result "0-1"]
[WhiteElo "1888"]
[BlackElo "2049"]
[TimeControl "600+2"]
[EndTime "11:30:52 PDT"]
[Termination "Kildepiotr won by resignation"]

1. d4 {[%clk 0:10:01.9]} 1... c5 {[%clk 0:10:00.5]} 2. d5 {[%clk 0:10:02.4]}
2... e5 {[%clk 0:10:00.9]} 3. c4 {[%clk 0:10:01.3]} 3... d6 {[%clk 0:10:01.8]}
4. Nc3 {[%clk 0:10:02.2]} 4... Be7 {[%clk 0:10:03.1]} 5. e4 {[%clk 0:10:00.9]}
5... Bg5 {[%clk 0:10:03.8]} 6. g3 {[%clk 0:09:56.4]} 6... Bxc1 {[%clk
0:10:03.4]} 7. Rxc1 {[%clk 0:09:57.4]} 7... Ne7 {[%clk 0:10:05.3]} 8. Bg2 {[%clk
0:09:58.3]} 8... O-O {[%clk 0:10:06.2]} 9. Nf3 {[%clk 0:09:58.2]} 9... Nd7
{[%clk 0:10:03.8]} 10. O-O {[%clk 0:09:57.5]} 10... h6 {[%clk 0:10:02.7]} 11. a3
{[%clk 0:09:56.3]} 11... f5 {[%clk 0:10:03.1]} 12. exf5 {[%clk 0:09:56.7]} 12...
Nxf5 {[%clk 0:10:03.8]} 13. Ne4 {[%clk 0:09:56.4]} 13... Nf6 {[%clk 0:10:04.3]}
14. Nxf6+ {[%clk 0:08:51.5]} 14... Qxf6 {[%clk 0:10:04]} 15. b4 {[%clk
0:08:40.2]} 15... b6 {[%clk 0:09:56.4]} 16. Nd2 {[%clk 0:08:35.5]} 16... Nd4
{[%clk 0:09:55.2]} 17. Ne4 {[%clk 0:08:36.4]} 17... Qg6 {[%clk 0:09:55.7]} 18.
bxc5 {[%clk 0:08:27.3]} 18... bxc5 {[%clk 0:09:49.8]} 19. h3 {[%clk 0:07:43.9]}
19... Bxh3 {[%clk 0:09:31.7]} 20. Bxh3 {[%clk 0:07:20.9]} 20... Qxe4 {[%clk
0:09:31.9]} 21. Bg2 {[%clk 0:06:53.1]} 21... Qg6 {[%clk 0:09:05.4]} 22. Rb1
{[%clk 0:06:31.4]} 22... Rab8 {[%clk 0:09:02]} 23. Rxb8 {[%clk 0:06:19.2]} 23...
Rxb8 {[%clk 0:09:02.5]} 24. Qd2 {[%clk 0:06:20.4]} 24... Rb3 {[%clk 0:08:20.2]}
25. Ra1 {[%clk 0:03:50.5]} 25... Qc2 {[%clk 0:07:57.2]} 26. Qa5 {[%clk
0:03:41.1]} 26... Ne2+ {[%clk 0:07:46]} 27. Kh2 {[%clk 0:03:37.9]} 27... Qg6
{[%clk 0:07:33.8]} 28. Qd8+ {[%clk 0:03:27.9]} 28... Kh7 {[%clk 0:07:34]} 29.
Qh4 {[%clk 0:02:40.4]} 29... Nc3 {[%clk 0:07:11.1]} 30. Re1 {[%clk 0:02:26.1]}
30... Qf6 {[%clk 0:07:06.3]} 31. Qg4 {[%clk 0:02:00.2]} 31... Rb2 {[%clk
0:06:52.2]} 32. f4 {[%clk 0:01:29.8]} 32... exf4 {[%clk 0:06:20.4]} 33. gxf4
{[%clk 0:01:26.8]} 33... Rf2 {[%clk 0:06:20.2]} 34. Kg3 {[%clk 0:01:19.9]} 34...
Rd2 {[%clk 0:05:52.6]} 35. Re6 {[%clk 0:01:18.6]} 35... Qf7 {[%clk 0:05:20.6]}
36. Bf3 {[%clk 0:01:00.3]} 36... Rd4 {[%clk 0:04:40.1]} 37. Rxd6 {[%clk
0:00:56.5]} 37... Rxc4 {[%clk 0:04:23.1]} 38. Rd7 {[%clk 0:00:41.8]} 38... Qf6
{[%clk 0:04:23.4]} 39. Rxa7 {[%clk 0:00:34.2]} 39... Nb5 {[%clk 0:04:00.7]} 40.
Ra8 {[%clk 0:00:17]} 40... Nd6 {[%clk 0:03:53.8]} 41. a4 {[%clk 0:00:11.4]}
41... Nf5+ {[%clk 0:03:41.8]} 42. Kh3 {[%clk 0:00:11.3]} 42... Rc3 {[%clk
0:03:25.9]} 43. Kh2 {[%clk 0:00:07]} 43... Re3 {[%clk 0:03:05.6]} 44. a5 {[%clk
0:00:06.3]} 44... Nd4 {[%clk 0:03:00.1]} 45. Bg2 {[%clk 0:00:06.1]} 45... Nf5
{[%clk 0:02:22.4]} 46. a6 {[%clk 0:00:07.2]} 46... Rg3 {[%clk 0:02:21.8]} 47.
Qxg3 {[%clk 0:00:02.6]} 47... Nxg3 {[%clk 0:02:22.1]} 48. Kxg3 {[%clk
0:00:04.1]} 48... Qg6+ {[%clk 0:02:10.8]} 49. Kh2 {[%clk 0:00:05.3]} 49... Qh5+
{[%clk 0:02:08.3]} 50. Kg1 {[%clk 0:00:05.2]} 50... Qd1+ {[%clk 0:02:08.2]} 51.
Kh2 {[%clk 0:00:06.6]} 51... Qd4 {[%clk 0:01:47.1]} 52. a7 {[%clk 0:00:06.9]}
52... Qxf4+ {[%clk 0:01:47.7]} 53. Kg1 {[%clk 0:00:08.3]} 53... Qe3+ {[%clk
0:01:44.3]} 54. Kh2 {[%clk 0:00:09.6]} 54... Qf4+ {[%clk 0:01:33.1]} 55. Kg1
{[%clk 0:00:10.6]} 55... Qa4 {[%clk 0:01:27.6]} 56. d6 {[%clk 0:00:10.9]} 56...
Qd4+ {[%clk 0:01:27.3]} 57. Kh1 {[%clk 0:00:11.3]} 57... Qd1+ {[%clk 0:01:17.8]}
58. Kh2 {[%clk 0:00:08.3]} 58... Qxd6+ {[%clk 0:01:18.2]} 59. Kh1 {[%clk
0:00:09.7]} 59... Qd1+ {[%clk 0:00:44.6]} 60. Kh2 {[%clk 0:00:10.6]} 60... Qa4
{[%clk 0:00:45]} 61. Kh1 {[%clk 0:00:03.2]} 61... h5 {[%clk 0:00:41.9]} 62. Rh8+
{[%clk 0:00:02.6]} 62... Kxh8 {[%clk 0:00:42.8]} 63. a8=Q+ {[%clk 0:00:04]}
63... Qxa8 {[%clk 0:00:43.6]} 64. Bxa8 {[%clk 0:00:05.6]} 64... g5 {[%clk
0:00:43.6]} 65. Kg2 {[%clk 0:00:06.5]} 65... Kg7 {[%clk 0:00:44.2]} 66. Kf2
{[%clk 0:00:07.3]} 66... Kf6 {[%clk 0:00:45.1]} 67. Ke3 {[%clk 0:00:07.8]} 67...
Ke5 {[%clk 0:00:45.6]} 68. Bc6 {[%clk 0:00:07.5]} 68... g4 {[%clk 0:00:46.1]}
69. Bd7 {[%clk 0:00:08.7]} 69... c4 {[%clk 0:00:44.2]} 70. Bc8 {[%clk
0:00:08.9]} 70... c3 {[%clk 0:00:43.8]} 71. Kd3 {[%clk 0:00:10.2]} 71... Kf4
{[%clk 0:00:44.7]} 72. Kxc3 {[%clk 0:00:11.4]} 72... Kf3 {[%clk 0:00:41.2]} 73.
Kd3 {[%clk 0:00:10.7]} 73... h4 {[%clk 0:00:41.1]} 74. Bb7+ {[%clk 0:00:10.7]}
74... Kf2 {[%clk 0:00:41.8]} 75. Ke4 {[%clk 0:00:08.4]} 75... g3 {[%clk
0:00:41.7]} 76. Kf4 {[%clk 0:00:08.1]} 76... h3 {[%clk 0:00:42.3]} 77. Kg4
{[%clk 0:00:08.1]} 77... g2 {[%clk 0:00:43]} 0-1